bitfinex-derivatives/quotes_ETHF0:USTF0_20250709
["timestamp","ask_amount","ask_price","bid_price","bid_amount"]
[1752071414577,3.2078,2647.2,2647.1,0.75543]
[1752071414777,3.2078,2647.5,2647.4,0.75534]
[1752071415078,3.2078,2647.5,2646.7,4.4723]
[1752071415266,0.75536,2647.4,2647.0,0.75545]
[1752071415465,3.2078,2647.5,2646.7,4.4723]
[1752071415673,3.2078,2647.5,2647.4,0.75535]
[1752071415869,0.9249,2647.6,2647.5,0.75532]
[1752071416172,3.2078,2647.6,2647.5,0.75532]
[1752071416374,3.2078,2648.7,2647.5,5.0]
[1752071416681,3.2078,2648.7,2647.6,6.34242]
[1752071416682,7.08980525,2648.7,2647.6,6.34242]
[1752071416879,0.75512,2648.2,2647.6,4.4542]
[1752071417074,0.75512,2648.2,2647.8,0.7552]
[1752071417271,0.75518,2648.0,2647.7,0.75526]
[1752071417471,1.234,2648.2,2647.3,3.8461]
[1752071417671,0.75528,2647.7,2647.3,0.6383]
[1752071417877,3.88200525,2647.4,2646.6,1.88894]
[1752071418081,0.9249,2647.6,2647.1,3.2078]
[1752071418384,3.88200525,2647.3,2646.7,1.2464]
[1752071418586,3.2078,2647.0,2646.9,0.75549]
[1752071418889,3.2078,2647.0,2646.7,1.2464]
[1752071419082,0.75553,2646.8,2646.3,0.6383]
[1752071419282,4.1582,2647.0,2646.4,0.75562]
[1752071419481,0.7555,2646.9,2646.4,3.2078]
[1752071419776,4.1582,2647.0,2646.4,4.5568]
[1752071420085,7.08980525,2646.7,2645.5,3.2078]
[1752071420281,3.2078,2646.4,2645.6,1.349]
[1752071420484,3.2078,2646.5,2645.9,3.2078]
[1752071420780,7.08980525,2646.0,2645.8,0.7558]
[1752071420988,7.08980525,2646.0,2645.4,0.6802]
[1752071421179,8.04020525,2646.0,2645.3,1.349]
[1752071421380,0.7558,2645.9,2645.3,1.349]
[1752071421580,0.75586,2645.6,2645.3,1.349]
[1752071421787,3.2078,2645.7,2645.3,1.349]
[1752071421984,3.2078,2645.7,2645.2,3.2078]
[1752071421985,4.83240525,2645.6,2645.2,3.2078]
[1752071422186,3.88200525,2645.3,2644.2,3.2078]
[1752071422383,3.2078,2645.1,2644.5,3.2078]
[1752071422686,3.2078,2645.1,2643.8,0.5399]
[1752071422687,3.2078,2645.1,2645.0,0.75603]
[1752071422885,4.1582,2645.5,2645.4,0.75592]
[1752071423083,3.2078,2645.8,2645.1,1.89001]
[1752071423282,54.4,2646.0,2645.5,3.2078]
[1752071423485,4.1582,2646.3,2645.5,3.2078]
[1752071423793,4.1582,2646.3,2645.7,3.2078]
[1752071424087,44.9582,2646.3,2646.2,0.75569]
[1752071424292,44.9582,2646.3,2645.4,3.2078]
[1752071424487,44.9582,2646.3,2644.9,0.6837]
[1752071424488,3.88200525,2645.9,2645.2,0.75596]
[1752071424686,3.88200525,2645.5,2645.1,3.2078]
[1752071424894,0.75597,2645.2,2644.9,0.75604]
[1752071425191,0.75592,2645.4,2644.8,3.2078]
[1752071425387,1.3681,2645.7,2645.4,0.75591]
[1752071425793,1.3681,2645.7,2645.6,0.75586]
[1752071425993,1.3681,2645.7,2645.0,5.09789]
[1752071426291,5.25010525,2645.7,2645.1,0.756]
[1752071426492,5.25010525,2645.7,2645.2,0.75597]
[1752071426493,3.88200525,2645.3,2645.2,0.75597]
[1752071426690,3.2078,2645.6,2645.5,0.75589]
[1752071426889,3.2078,2645.6,2644.8,3.2078]
[1752071427089,3.2078,2645.6,2644.4,3.88200525]
[1752071427090,3.96382,2645.1,2644.9,0.75606]
[1752071427298,3.96382,2645.1,2644.4,5.09831]
[1752071427299,1.70645,2645.0,2644.4,3.2078]
[1752071427595,0.9504,2645.0,2644.7,0.75609]
[1752071427789,3.00089,2644.9,2644.4,3.2078]
[1752071427995,5.93249525,2644.9,2644.7,0.75611]
[1752071428195,3.2078,2645.1,2644.4,5.09827]
[1752071428390,3.2078,2645.4,2645.3,0.75595]
[1752071428592,3.2078,2645.4,2644.5,1.296]
[1752071428593,3.2078,2645.7,2645.6,0.75586]
[1752071428992,3.2078,2645.7,2645.1,3.2078]
[1752071429195,3.88200525,2645.6,2644.8,6.37119]
[1752071429400,3.88200525,2645.6,2644.9,0.75604]
[1752071429401,1.88973,2645.5,2644.9,0.75604]
[1752071429593,0.75606,2644.9,2644.5,3.2078]
[1752071429797,0.75605,2645.0,2644.5,3.2078]
[1752071430101,3.2078,2645.3,2644.6,5.09817]
[1752071430393,3.2078,2645.3,2645.2,0.75597]
[1752071430589,2.07999,2645.5,2645.1,3.2078]
[1752071430794,1.3241,2645.5,2645.2,0.75595]
[1752071430990,1.3241,2645.5,2644.9,1.2732]
[1752071430991,4.1582,2645.4,2644.9,1.2732]
[1752071431194,3.2078,2645.0,2644.2,0.6837]
[1752071431394,0.9504,2645.0,2644.5,0.75615]
[1752071431594,7.08980525,2645.1,2644.2,1.9569]
[1752071431595,3.2078,2645.1,2645.0,0.75603]
[1752071431791,1.88963,2645.7,2644.8,3.2078]
[1752071431792,1.3568,2645.6,2644.8,3.2078]
[1752071431998,3.2078,2645.7,2645.1,3.2078]
[1752071432298,3.2078,2645.7,2645.6,0.75586]
[1752071433398,3.2078,2645.7,2645.4,0.7559]
[1752071433399,0.75589,2645.6,2645.4,0.7559]
[1752071433593,0.75589,2645.6,2645.1,0.75599]
[1752071433594,0.75599,2645.2,2645.1,0.75599]
[1752071433797,3.2078,2645.7,2645.0,5.09786]
[1752071433992,3.2078,2645.7,2645.0,3.2078]
[1752071434196,3.2078,2645.7,2645.6,0.75586]
[1752071434393,1.88966,2645.6,2644.8,0.6264]
[1752071434598,3.2078,2645.4,2645.1,0.756]
[1752071434797,7.08980525,2645.4,2644.8,0.75608]
[1752071435000,0.75601,2645.1,2644.6,1.89037]
[1752071435200,3.2078,2645.1,2645.0,0.75603]
[1752071435401,3.2078,2645.1,2644.3,0.6782]
[1752071435402,1.89016,2644.9,2644.3,0.6782]
[1752071435600,3.2078,2644.6,2644.0,1.3677]
[1752071435997,3.2078,2644.3,2643.6,3.886]
[1752071436198,3.2078,2644.3,2643.7,1.3677]
[1752071436399,3.2078,2644.4,2643.9,1.89087]
[1752071436603,3.2078,2644.4,2644.3,0.75623]
[1752071436898,0.75635,2643.9,2643.7,0.75638]
[1752071437104,0.75635,2643.9,2643.7,0.7564]
[1752071437307,3.2078,2644.8,2643.7,5.0]
[1752071437494,3.2078,2644.2,2643.8,1.3677]
[1752071437695,3.2078,2643.9,2643.8,0.75635]
[1752071437901,3.2078,2643.9,2643.2,4.5112]
[1752071438200,0.75639,2643.8,2643.2,4.5112]
[1752071438402,3.2078,2643.8,2643.5,1.89111]
[1752071438595,1.2765,2644.4,2643.7,0.7564]
[1752071438898,28.903,2644.7,2643.7,0.7564]
[1752071438899,4.1582,2644.7,2644.3,0.75623]
[1752071439103,3.2078,2644.7,2644.6,0.75615]
[1752071439295,3.2078,2645.1,2645.0,0.75603]
[1752071439603,1.53523412,2645.1,2645.0,0.75603]
[1752071439810,1.53523412,2645.1,2645.0,5.75603]
[1752071440001,0.93261514,2645.1,2645.0,9.50373]
[1752071440308,3.28296652,2645.7,2645.0,6.89008]
[1752071440600,12.41749394,2646.0,2645.3,3.2078]
[1752071440601,3.28296652,2645.8,2645.3,3.2078]
[1752071440800,7.92085177,2645.6,2644.8,0.6735]
[1752071441002,4.03879652,2645.7,2645.1,3.2078]
[1752071441205,3.28296652,2645.7,2645.6,0.75586]
[1752071441404,3.2078,2645.9,2645.2,3.2078]
[1752071441602,7.56838006,2645.8,2644.9,1.248]
[1752071441802,0.75607,2644.9,2644.7,0.75611]
[1752071441996,3.2078,2645.2,2644.2,3.2078]
[1752071442203,1.3432,2644.8,2644.0,1.8908]
[1752071442406,0.75612,2644.7,2644.5,0.75615]
[1752071442608,3.2078,2644.6,2644.5,0.75617]
[1752071442908,3.96387,2644.9,2644.2,3.2078]
[1752071443102,3.96389,2644.9,2644.7,0.75611]
[1752071443299,1.8903,2644.7,2643.2,1.89136]
[1752071443602,0.75631,2644.1,2643.9,0.75633]
[1752071443906,0.75626,2644.2,2643.7,3.2078]
[1752071444202,3.2078,2644.3,2644.2,0.75626]
[1752071444403,0.9504,2645.1,2644.4,0.75618]
[1752071444596,3.2078,2644.9,2643.9,3.2078]
[1752071444797,0.9504,2645.1,2644.2,3.2078]
[1752071445002,0.9504,2645.1,2643.9,3.78165]
[1752071445003,0.9504,2645.1,2645.0,0.75603]
[1752071445198,0.9504,2645.1,2644.5,3.2078]
[1752071445508,0.9504,2645.1,2644.8,0.75608]
[1752071445509,0.75604,2645.0,2644.8,0.75608]
[1752071445805,4.1582,2645.1,2645.0,0.75603]
[1752071446106,4.1582,2645.1,2644.3,3.24996]
[1752071446307,3.2078,2644.7,2644.6,0.75615]
[1752071447404,0.9504,2645.1,2644.3,3.24994]
[1752071447405,0.9504,2645.1,2645.0,0.75603]
[1752071447610,0.9504,2645.1,2644.7,3.2078]
[1752071447909,0.75606,2644.9,2644.3,1.3594]
[1752071448110,1.3682,2645.0,2644.8,0.75608]
[1752071448306,1.3682,2645.0,2644.3,1.3594]
[1752071448307,1.3682,2645.0,2644.9,0.75606]
[1752071448508,3.2078,2645.1,2644.4,3.2078]
[1752071448708,29.282,2645.2,2644.2,3.82512]
[1752071448709,3.2078,2644.8,2644.2,0.6615]
[1752071448905,3.2078,2644.7,2643.9,1.89087]
[1752071449110,1.3682,2644.7,2644.5,0.75616]
[1752071449312,3.96396,2644.6,2644.4,0.75618]
[1752071449511,1.3682,2644.7,2643.8,5.09869]
[1752071449814,0.75622,2644.4,2644.3,0.75623]
[1752071450108,3.2078,2644.6,2643.8,5.09869]
[1752071450109,3.2078,2644.6,2644.5,0.75617]
[1752071450314,3.2078,2644.7,2644.3,1.89052]
[1752071450510,3.96396,2644.6,2644.5,0.75617]
[1752071450710,3.96396,2644.6,2644.1,3.2078]
[1752071450909,3.96396,2644.6,2643.5,3.78226]
[1752071450910,6.49076652,2645.0,2644.2,3.2078]
[1752071451112,3.28296652,2645.0,2644.5,3.2078]
[1752071451308,3.28296652,2645.0,2644.3,0.75622]
[1752071451309,3.2078,2644.6,2644.3,0.75622]
[1752071451612,3.2078,2644.6,2643.9,4.553]
[1752071451815,3.2078,2644.6,2643.6,3.2078]
[1752071452016,3.2078,2644.0,2643.3,3.7483]
[1752071452210,1.89039,2644.6,2643.5,4.553]
[1752071452413,3.43829913,2644.5,2643.6,1.89109]
[1752071452610,0.7563,2644.1,2643.9,0.75632]
[1752071452810,0.75628,2644.2,2643.6,1.89109]
[1752071453115,0.75633,2644.0,2643.5,6.44413]
[1752071453314,4.477,2644.5,2644.1,0.75629]
[1752071453614,3.2078,2644.2,2643.5,5.09894]
[1752071453813,1.8908,2644.0,2643.5,3.2078]
[1752071454010,8.48258006,2643.6,2641.6,9.32980911]
[1752071454315,2.87066598,2643.5,2643.0,3.2078]
[1752071454505,3.2078,2644.0,2643.4,3.2078]
[1752071454714,1.54523451,2643.9,2643.8,0.75637]
[1752071455012,3.2078,2644.4,2644.3,0.75623]
[1752071455212,3.2078,2644.4,2643.7,3.2078]
[1752071455514,0.75627,2644.2,2643.8,1.3236]
[1752071455717,3.2078,2643.9,2643.8,0.75637]
[1752071456013,3.2078,2644.2,2644.1,0.75629]
[1752071456404,3.2078,2644.2,2643.6,4.5625]
[1752071456609,3.2078,2644.2,2644.1,0.75629]
[1752071456610,3.32760802,2644.2,2644.1,0.75629]
[1752071456807,3.32760802,2644.4,2644.2,0.75625]
[1752071457009,6.53540802,2644.5,2644.2,0.75624]
[1752071457214,3.2078,2644.5,2643.8,0.75636]
[1752071457413,3.96416,2643.9,2643.5,0.6663]
[1752071457610,3.2078,2643.9,2643.5,0.6663]
[1752071457805,3.2078,2643.9,2642.6,0.7567]
[1752071457806,3.2078,2643.6,2642.6,0.7567]
[1752071458008,3.2078,2643.1,2642.7,3.2078]
[1752071458217,3.2078,2643.1,2642.3,3.2078]
[1752071458415,3.2078,2642.8,2642.3,0.7568]
[1752071458616,0.7568,2642.3,2642.2,0.6713]
[1752071458916,3.9646,2642.3,2642.2,0.6713]
[1752071459113,3.2078,2642.3,2642.1,0.75685]
[1752071459307,1.2778,2643.0,2642.0,4.5632]
[1752071459308,3.2078,2642.7,2642.0,4.5632]
[1752071459509,3.2078,2642.3,2641.7,3.2078]
[1752071459716,3.2078,2642.3,2641.5,0.6257]
[1752071459917,0.75694,2641.9,2641.5,2.73812]
[1752071460111,3.2078,2642.0,2641.9,0.75692]
[1752071460317,3.2078,2642.0,2640.9,0.0025]
[1752071460318,0.75721,2640.9,2640.8,3.2078]
[1752071460516,0.75721,2640.9,2640.3,3.48573911]
[1752071460517,8.48258006,2640.9,2640.3,3.48573911]
[1752071460710,0.75743,2640.1,2640.0,7.76277476]
[1752071460911,2.89548745,2640.1,2639.8,0.18559795]
[1752071461119,1.3276,2640.0,2638.7,3.50617785]
[1752071461414,1.3276,2640.0,2638.6,7.76277476]
[1752071461415,3.2078,2639.3,2638.6,12.32597476]
[1752071461614,4.5354,2640.0,2639.0,3.2078]
[1752071461817,0.75758,2639.6,2639.1,1.3554]
[1752071462116,3.2078,2640.4,2639.3,3.2078]
[1752071462415,3.2078,2641.2,2640.1,3.2078]
[1752071462617,3.2078,2641.4,2640.4,3.2078]
[1752071462923,3.2078,2642.0,2641.3,3.2078]
[1752071463118,3.2078,2642.0,2640.5,2.89357]
[1752071463119,3.2078,2642.3,2641.4,3.2078]
[1752071463418,3.32760802,2643.4,2642.2,3.2078]
[1752071463616,1.8909,2643.9,2642.0,3.2078]
[1752071463617,1.89139,2643.2,2642.0,3.2078]
[1752071463812,3.2078,2642.9,2642.1,1.2994]
[1752071464014,3.2078,2643.6,2642.5,3.21347601]
[1752071464314,3.2078,2643.6,2642.8,3.2078]
[1752071464514,1.3494,2643.7,2643.0,3.2078]
[1752071464710,1.3494,2643.7,2642.9,1.0003]
[1752071465119,3.2078,2643.5,2643.0,1.3244]
[1752071465318,3.2078,2643.5,2643.1,1.0003]
[1752071465515,3.96425,2643.6,2643.2,1.0003]
[1752071465812,3.2078,2643.3,2642.8,1.0003]
[1752071466020,3.2078,2643.5,2643.2,0.75655]
[1752071466215,3.2078,2643.5,2643.2,0.75654]
[1752071466416,0.75649,2643.4,2642.9,1.0003]
[1752071466723,3.2078,2643.5,2642.9,1.0003]
[1752071466923,3.2078,2643.2,2642.9,1.0003]
[1752071467123,3.2078,2643.5,2643.0,1.0003]
[1752071467324,3.2078,2643.5,2642.6,4.5322]
[1752071467325,0.75639,2643.8,2643.3,0.75651]
[1752071467519,3.96416,2643.9,2643.4,1.75678]
[1752071467720,3.2078,2643.9,2643.5,0.75644]
[1752071467926,3.2078,2643.9,2643.5,0.75646]
[1752071468220,3.32760802,2645.0,2643.8,3.2078]
[1752071468423,1.53553712,2644.9,2644.6,3.2078]
[1752071468625,4.4787,2645.3,2644.7,1.0003]
[1752071468924,3.2078,2645.0,2643.9,3.2078]
[1752071469117,3.2078,2644.5,2643.9,4.2081]
[1752071469318,3.2078,2644.2,2643.9,1.75663]
[1752071469625,3.2078,2644.2,2643.9,1.0003]
[1752071469825,3.2078,2644.2,2643.8,0.00567601]
[1752071470127,1.2709,2644.4,2643.8,0.00567601]
[1752071470128,3.2078,2643.9,2643.8,0.00567601]
[1752071470622,3.96415,2643.9,2643.8,0.00567601]
[1752071470819,0.7565,2643.4,2643.0,1.75689]
[1752071471019,3.2078,2643.4,2643.1,0.75656]
[1752071471219,0.75662,2643.0,2642.6,1.3242]
[1752071471419,3.2078,2642.7,2642.1,2.40664]
[1752071471724,3.2078,2642.7,2642.1,2.9581]
[1752071471927,3.2078,2642.7,2642.2,0.75681]
[1752071472223,0.00567601,2642.7,2642.5,3.2078]
[1752071472417,0.00567601,2642.7,2642.6,1.3083]
[1752071472614,0.00567601,2642.7,2642.2,0.75683]
[1752071472815,0.00567601,2642.7,2642.2,1.3083]
[1752071473023,0.00567601,2642.7,2642.6,0.75672]
[1752071473316,3.2078,2643.2,2642.7,1.89173]
[1752071473525,3.2078,2643.2,2643.1,0.75658]
[1752071473725,3.2078,2643.5,2643.4,0.75648]
[1752071473920,3.2078,2643.5,2643.4,1.0003]
[1752071474322,3.2078,2643.5,2643.4,1.75679]
[1752071474523,3.2078,2643.5,2642.9,4.2081]
[1752071474924,4.4477,2643.5,2642.9,4.2081]
[1752071475427,3.2078,2643.5,2642.9,4.2081]
[1752071475630,0.75669,2642.7,2642.2,1.00597601]
[1752071475832,3.2078,2642.8,2642.4,0.75678]
[1752071476033,4.4477,2643.4,2642.7,1.89173]
[1752071476234,4.4477,2643.4,2643.2,0.75654]
[1752071476525,3.2078,2643.4,2643.3,0.75652]
[1752071476727,3.2078,2643.4,2642.8,1.277]
[1752071476924,1.89152,2643.0,2641.7,3.2078]
[1752071477124,5.09978,2642.4,2641.1,6.37767]
[1752071477331,3.2078,2641.9,2641.8,0.75695]
[1752071477532,3.2078,2641.9,2641.2,4.2081]
[1752071477533,3.2078,2641.9,2641.3,1.89273]
[1752071477728,3.2078,2641.9,2641.2,4.2081]
[1752071477729,3.2078,2641.9,2641.2,1.0003]
[1752071477935,1.2431,2641.8,2641.2,1.0003]
[1752071478135,1.2431,2641.8,2641.5,0.75702]
[1752071478329,2.00006,2641.8,2641.2,1.0003]
[1752071478534,1.2431,2641.8,2641.2,1.0003]
[1752071478726,3.2078,2641.6,2641.2,1.0003]
[1752071478932,1.2431,2641.5,2641.4,0.75706]
[1752071479126,1.2431,2641.5,2641.2,1.0003]
[1752071479331,3.2078,2641.5,2641.4,0.75706]
[1752071479530,0.6464,2642.2,2641.2,1.0003]
[1752071479729,3.2078,2642.1,2641.3,1.3616]
[1752071479934,3.2078,2641.8,2641.2,1.0003]
[1752071480133,3.2078,2641.8,2641.7,0.75698]
[1752071480331,0.75688,2642.1,2641.4,3.2078]
[1752071480531,1.3476,2642.0,2641.7,0.75696]
[1752071480733,4.5554,2642.0,2641.2,1.0003]
[1752071481032,3.2078,2641.3,2640.6,0.9845]
[1752071481240,1.3476,2641.2,2640.6,0.9845]
[1752071481536,1.3476,2641.2,2640.5,3.2078]
[1752071481735,1.35327601,2641.2,2640.6,1.89324]
[1752071481941,1.35327601,2641.2,2641.1,0.75715]
[1752071482242,0.00567601,2641.2,2641.1,0.75715]
[1752071482837,0.00567601,2641.2,2640.4,1.2935]
[1752071482838,5.00567601,2641.2,2640.4,1.2935]
[1752071483039,3.2078,2640.9,2640.8,0.75723]
[1752071483339,0.00567601,2641.2,2641.1,0.75715]
[1752071483728,3.21347601,2641.2,2641.0,0.75716]
[1752071483929,3.21347601,2641.2,2640.4,1.2935]
[1752071484134,1.2924,2641.1,2640.4,3.18683]
[1752071484330,3.21347601,2641.2,2641.1,0.75715]
[1752071484531,3.2078,2641.5,2641.4,0.75706]
[1752071484731,3.2078,2641.8,2641.7,0.75698]
[1752071485029,3.2078,2642.8,2641.5,3.2078]
[1752071485234,4.5002,2642.8,2641.8,3.2078]
[1752071485432,3.2078,2642.4,2642.3,0.75679]
[1752071485643,3.2078,2642.4,2641.9,0.75691]
[1752071485838,0.75685,2642.2,2641.2,1.9516]
[1752071486039,0.75691,2642.0,2641.7,0.75696]
[1752071486244,4.5002,2642.1,2641.7,0.75696]
[1752071486442,4.5002,2642.1,2642.0,0.75689]
[1752071486643,5.27568006,2643.1,2641.7,0.9845]
[1752071486644,3.2078,2642.6,2641.9,1.89228]
[1752071486941,6.53540802,2643.8,2642.4,1.89193]
[1752071487238,3.2078,2642.8,2642.0,1.89223]
[1752071487439,1.3248,2642.7,2642.6,0.75672]
[1752071487638,3.2078,2642.8,2642.7,0.75669]
[1752071488341,3.2078,2642.8,2642.2,3.2078]
[1752071488539,3.2078,2642.8,2642.4,1.8919]
[1752071488743,3.2078,2643.1,2643.0,0.7566]
[1752071488942,3.2078,2643.1,2642.5,4.1923]
[1752071488943,1.3248,2643.2,2643.1,0.75657]
[1752071489239,3.2078,2643.6,2643.5,0.75646]
[1752071489441,6.83565563,2643.6,2643.3,0.75649]
[1752071489638,6.83565563,2643.6,2642.8,3.2078]
[1752071489639,4.5326,2643.6,2642.8,3.2078]
[1752071489839,4.5326,2643.6,2642.6,1.89175]
[1752071490039,3.2078,2643.3,2642.5,0.9845]
[1752071490234,0.75658,2643.1,2642.8,0.75664]
[1752071490435,4.5166,2643.0,2642.4,3.2078]
[1752071490639,0.75667,2642.8,2642.5,0.75674]
[1752071490841,3.2078,2642.6,2642.1,3.2078]
[1752071491041,1.3088,2642.5,2642.1,3.2078]
[1752071491235,1.3088,2642.5,2641.7,3.2078]
[1752071491740,3.2078,2642.3,2641.7,3.2078]
[1752071491940,1.3088,2642.5,2641.7,4.1923]
[1752071492142,1.3088,2642.5,2641.7,3.2078]
[1752071492340,3.2078,2642.3,2641.8,0.75692]
[1752071492537,1.2539,2642.2,2641.7,3.2078]
[1752071492742,1.2539,2642.2,2641.2,1.89279]
[1752071492743,3.2078,2642.0,2641.2,1.89279]
[1752071492943,1.2539,2641.9,2641.3,1.89273]
[1752071493138,3.96459,2642.4,2642.2,0.75682]
[1752071493346,3.2078,2642.4,2642.2,0.75682]
[1752071493542,3.2078,2642.4,2641.7,2.87691]
[1752071493543,1.2539,2642.3,2641.7,4.1923]
[1752071493843,3.2078,2642.4,2642.3,0.7568]
[1752071494547,8.2078,2642.4,2641.6,0.6543]
[1752071494742,1.2539,2642.3,2641.4,0.9845]
[1752071494941,3.2078,2642.1,2641.2,1.89277]
[1752071495245,3.2078,2642.1,2642.0,0.75689]
[1752071495439,57.05109,2643.0,2641.4,0.9845]
[1752071495440,0.7569,2642.0,2641.7,0.75696]
[1752071495649,0.75694,2641.9,2641.6,0.757]
[1752071495843,1.3303,2641.9,2641.4,0.9845]
[1752071496044,1.89166,2642.8,2641.8,3.2078]
[1752071496251,0.75687,2642.1,2641.9,0.75691]
[1752071496547,3.2078,2642.3,2641.9,0.75692]
[1752071496746,1.3303,2642.0,2641.8,0.75693]
[1752071497043,1.3303,2642.0,2641.6,0.75699]
[1752071497244,0.75693,2641.9,2641.5,3.2078]
[1752071497444,4.5381,2641.8,2641.1,5.10067]
[1752071497644,5.29507,2641.8,2641.6,0.757]
[1752071497844,4.5381,2641.8,2641.1,5.10067]
[1752071498144,4.5381,2641.8,2641.7,0.75698]
[1752071498449,7.17990802,2643.0,2641.7,4.1923]
[1752071498745,3.2078,2642.7,2641.9,3.2078]
[1752071498937,1.3285,2642.6,2641.9,3.2078]
[1752071499140,0.75676,2642.5,2642.3,0.75679]
[1752071499448,1.3285,2642.6,2641.6,3.2078]
[1752071499449,0.75685,2642.2,2641.6,3.2078]
[1752071499647,4.5363,2642.1,2641.6,3.2078]
[1752071499950,4.5363,2642.1,2641.8,0.75694]
[1752071500138,4.5363,2642.1,2641.6,3.2078]
[1752071500344,5.29318,2642.1,2641.9,0.75691]
[1752071500543,5.29318,2642.1,2641.9,0.75692]
[1752071500846,0.7569,2642.0,2641.8,0.75693]
[1752071501048,1.3285,2641.9,2641.3,0.9845]
[1752071501348,1.3285,2641.9,2641.8,0.75695]
[1752071501848,3.2078,2642.4,2642.0,0.75689]
[1752071502043,4.37818869,2643.1,2642.2,1.89209]
[1752071502044,3.32760802,2643.1,2642.2,1.89209]
[1752071502240,4.76841366,2643.0,2642.9,0.75663]
[1752071502744,3.2078,2643.0,2642.9,0.75663]
[1752071503047,3.2078,2643.3,2642.9,0.9845]
[1752071503248,3.2078,2643.6,2643.5,0.75646]
[1752071503444,6.02443248,2643.6,2643.5,0.75646]
[1752071503640,4.76913248,2643.6,2643.5,0.75646]
[1752071504842,1.56133248,2643.6,2643.5,1.74096]
[1752071506455,5.52558248,2643.6,2643.2,0.9845]
[1752071506746,1.56133248,2643.5,2643.4,0.75648]
[1752071506947,0.39280248,2643.5,2643.4,1.74098]
[1752071507250,4.37728869,2644.2,2643.4,1.74098]
[1752071507251,3.2078,2645.2,2643.6,1.89104]
[1752071507450,2.10225,2645.3,2645.1,0.756]
[1752071507651,1.3463,2645.3,2645.1,0.75599]
[1752071507849,1.3463,2645.3,2645.2,0.75597]
[1752071508249,0.75598,2645.2,2644.9,0.75603]
[1752071508451,0.75597,2645.3,2645.0,0.75602]
[1752071508658,3.2078,2645.4,2644.8,1.89023]
[1752071508857,4.37728869,2645.2,2645.0,0.75602]
[1752071509157,4.4785,2645.4,2645.0,0.75602]
[1752071509453,5.23443,2645.4,2644.7,2.2749]
[1752071509650,3.2078,2645.4,2644.7,2.2749]
[1752071509854,3.2078,2645.4,2645.2,0.75596]
[1752071510054,3.2078,2645.4,2645.3,0.75595]
[1752071510251,3.2078,2645.4,2645.2,0.75596]
[1752071510453,0.75598,2645.2,2644.7,5.4827]
[1752071510755,3.2078,2645.1,2644.7,0.75611]
[1752071510952,3.2078,2645.1,2644.3,4.8156]
[1752071510953,4.4957,2645.1,2644.4,0.7562]
[1752071511252,4.4957,2645.1,2644.0,3.2078]
[1752071511253,3.2078,2644.5,2644.0,3.2078]
[1752071511454,3.2078,2644.5,2644.1,0.9442]
[1752071511856,0.75623,2644.3,2644.2,0.9442]
[1752071512155,0.75632,2644.0,2643.9,3.2078]
[1752071512348,3.2078,2644.5,2643.6,4.5485]
[1752071512548,0.75636,2643.9,2643.6,4.5485]
[1752071512753,3.2078,2644.5,2643.7,2.2849]
[1752071512952,5.27478006,2645.1,2643.7,2.2849]
[1752071512953,3.2078,2644.9,2644.6,0.75613]
[1752071513252,3.2078,2644.9,2644.3,0.9442]
[1752071513459,0.7562,2644.5,2644.3,1.70043]
[1752071513659,3.2078,2644.9,2644.4,0.9442]
[1752071513853,3.96388,2644.9,2644.7,0.75611]
[1752071514054,3.2078,2644.9,2644.8,1.70029]
[1752071514255,3.2078,2645.3,2644.8,0.9442]
[1752071514453,3.2078,2645.3,2644.9,2.2411]
[1752071514660,3.2078,2645.3,2645.1,0.75598]
[1752071514957,3.2078,2645.3,2645.2,1.70017]
[1752071515258,3.2078,2645.3,2644.9,1.2969]
[1752071515454,0.75602,2645.1,2644.8,3.8697]
[1752071515655,3.2078,2645.3,2644.9,0.9442]
[1752071515954,4.4537,2645.6,2645.1,0.75599]
[1752071516158,3.2078,2645.6,2645.2,0.9442]
[1752071516352,0.75592,2645.4,2645.3,0.9442]
[1752071516552,0.75596,2645.3,2645.0,2.05292]
[1752071516853,0.756,2645.1,2645.0,2.2411]
[1752071517058,3.2078,2645.3,2644.8,0.6619]
[1752071517252,0.75616,2644.6,2644.3,1.70041]
[1752071517452,3.2078,2644.7,2644.1,1.3519]
[1752071517758,3.2078,2644.7,2644.1,2.10818]
[1752071517960,0.75623,2644.4,2644.1,2.10818]
[1752071518157,0.75626,2644.3,2644.1,1.3519]
[1752071518459,0.75623,2644.3,2644.1,3.05238]
[1752071518657,0.75625,2644.3,2644.1,2.2961]
[1752071518953,1.89037,2644.6,2643.9,0.6522]
[1752071519154,3.2078,2644.1,2643.6,0.75641]
[1752071519348,3.2078,2644.1,2643.7,0.9442]
[1752071519554,3.2078,2644.1,2643.8,2.2961]
[1752071519749,0.75625,2644.3,2644.0,0.75632]
[1752071519949,0.75627,2644.2,2644.0,2.2033]
[1752071520156,3.2078,2644.4,2644.0,2.2033]
[1752071520355,0.75646,2643.5,2643.4,0.9442]
[1752071520655,0.75646,2643.5,2642.1,0.9442]
[1752071520656,1.89126,2643.4,2642.1,0.9442]
[1752071520859,3.2078,2642.5,2642.1,0.9442]
[1752071521256,0.75682,2642.3,2642.1,0.9442]
[1752071521653,0.75682,2642.3,2641.9,2.016]
[1752071521654,0.75697,2641.8,2641.5,3.2078]
[1752071521855,3.2078,2642.2,2641.5,4.4669]
[1752071522057,3.2078,2642.5,2641.8,3.2078]
[1752071522251,44.0078,2642.9,2642.0,1.8922]
[1752071522560,0.75655,2643.2,2642.2,8.48258006]
[1752071522856,3.2078,2643.3,2643.0,0.75659]
[1752071523056,3.2078,2643.3,2643.1,0.75656]